bitfinex-derivatives/quotes_SOLF0:USTF0_20240820
["timestamp","ask_amount","ask_price","bid_price","bid_amount"]
[1724181352457,14.2168,143.38,143.35,3.4873]
[1724181353048,1.3228,143.44,143.35,10.73]
[1724181353049,12.072,143.41,143.35,10.73]
[1724181353255,12.072,143.41,143.34,10.73]
[1724181353654,0.05028105,143.39,143.36,0.04932545]
[1724181355565,3.53678105,143.39,143.36,3.53642545]
[1724181355959,10.73,143.38,143.36,0.04932545]
[1724181356365,10.78028105,143.39,143.36,0.04932545]
[1724181357165,3.4867,143.38,143.36,0.04932545]
[1724181357365,14.2167,143.38,143.36,0.04932545]
[1724181358765,10.73,143.38,143.36,3.53632545]
[1724181358961,3.53688105,143.39,143.36,3.53632545]
[1724181359463,0.05028105,143.39,143.37,3.4869]
[1724181360153,0.05028105,143.39,143.36,0.04932545]
[1724181361354,0.05028105,143.39,143.37,3.4868]
[1724181362264,0.05028105,143.39,143.36,0.04932545]
[1724181362868,0.05028105,143.39,143.37,3.4869]
[1724181363367,0.05028105,143.39,143.36,3.53642545]
[1724181364361,0.05028105,143.39,143.37,3.4869]
[1724181364966,0.05028105,143.39,143.36,3.53642545]
[1724181365471,0.05028105,143.39,143.36,0.04932545]
[1724181366371,0.05028105,143.39,143.37,3.4868]
[1724181367973,0.05028105,143.39,143.36,3.53642545]
[1724181368963,10.78028105,143.39,143.36,3.53642545]
[1724181369166,14.26678105,143.39,143.36,3.53642545]
[1724181369478,14.26678105,143.39,143.36,0.04932545]
[1724181369972,10.78028105,143.39,143.36,0.04932545]
[1724181370362,0.05028105,143.39,143.36,0.04932545]
[1724181371575,10.78028105,143.39,143.36,0.04932545]
[1724181371765,10.78028105,143.39,143.36,3.53642545]
[1724181373379,0.05028105,143.39,143.36,0.04932545]
[1724181373974,3.53678105,143.39,143.36,3.53632545]
[1724181374573,14.26678105,143.39,143.36,3.53632545]
[1724181375377,3.4868,143.38,143.36,0.04932545]
[1724181375580,10.78028105,143.39,143.36,0.04932545]
[1724181376881,14.26688105,143.39,143.36,3.53652545]
[1724181378368,14.26688105,143.39,143.36,0.04932545]
[1724181378681,3.53688105,143.39,143.36,0.04932545]
[1724181378881,0.05028105,143.39,143.36,0.04932545]
[1724181380798,0.05028105,143.39,143.37,3.4868]
[1724181383280,0.05028105,143.39,143.36,3.53642545]
[1724181383474,0.05028105,143.39,143.36,0.04932545]
[1724181383475,14.26688105,143.39,143.36,0.04932545]
[1724181383787,14.26688105,143.39,143.36,3.53642545]
[1724181385390,10.78028105,143.39,143.37,3.4868]
[1724181385584,0.05028105,143.39,143.37,3.4868]
[1724181386192,3.53678105,143.39,143.36,3.53652545]
[1724181386987,0.05028105,143.39,143.37,3.4868]
[1724181387583,0.05028105,143.39,143.37,3.487]
[1724181388188,0.05028105,143.39,143.38,3.4867]
[1724181389188,0.05028105,143.39,143.37,3.4868]
[1724181391081,3.53688105,143.39,143.36,3.53642545]
[1724181391285,0.05028105,143.39,143.36,3.53642545]
[1724181391485,0.05028105,143.39,143.36,0.04932545]
[1724181392694,0.05028105,143.39,143.37,3.4868]
[1724181393192,3.53678105,143.39,143.36,0.04932545]
[1724181393392,10.73,143.38,143.36,0.04932545]
[1724181394298,14.2168,143.38,143.36,0.04932545]
[1724181394600,10.73,143.38,143.36,0.04932545]
[1724181395504,10.73,143.38,143.36,3.53652545]
[1724181397097,10.73,143.38,143.36,0.04932545]
[1724181397894,3.487,143.37,143.36,0.04932545]
[1724181404804,14.2169,143.38,143.36,0.04932545]
[1724181405299,3.4869,143.38,143.36,0.04932545]
[1724181405601,0.05028105,143.39,143.36,0.04932545]
[1724181405899,0.05028105,143.39,143.36,10.77932545]
[1724181406098,0.05028105,143.39,143.37,3.4868]
[1724181407512,0.05028105,143.39,143.38,3.4867]
[1724181411099,0.05028105,143.39,143.37,3.4868]
[1724181417411,0.05028105,143.39,143.38,3.4867]
[1724181420313,0.05028105,143.39,143.37,3.4868]
[1724181420501,10.78028105,143.39,143.36,0.04932545]
[1724181420702,10.73,143.38,143.36,0.04932545]
[1724181421114,10.73,143.38,143.36,3.53642545]
[1724181422713,10.73,143.38,143.36,0.04932545]
[1724181423709,3.4869,143.37,143.36,0.04932545]
[1724181425203,14.2168,143.38,143.36,0.04932545]
[1724181426319,14.2168,143.38,143.36,3.53652545]
[1724181429819,14.2168,143.38,143.36,0.04932545]
[1724181430013,3.4869,143.37,143.36,0.04932545]
[1724181430223,14.2169,143.37,143.36,0.04932545]
[1724181430519,14.23442485,143.37,143.28,39.44863891]
[1724181430720,10.73,143.33,143.27,87.72649863]
[1724181430931,10.73,143.33,143.27,46.16976518]
[1724181431322,10.73,143.33,143.27,12.0775]
[1724181431618,0.05328483,143.31,143.3,3.4885]
[1724181431921,0.05328483,143.31,143.29,0.05359641]
[1724181433227,0.05328483,143.31,143.3,3.4886]
[1724181437837,3.4875,143.35,143.32,3.4879]
[1724181438128,2.5553,143.38,143.32,10.73]
[1724181438524,3.4873,143.36,143.33,3.4878]
[1724181438919,3.53231042,143.36,143.33,3.54124398]
[1724181441023,0.04501042,143.36,143.33,0.05344398]
[1724181441219,10.73,143.42,143.35,10.73]
[1724181441619,3.4863,143.4,143.36,3.4871]
[1724181442225,0.04567016,143.39,143.36,3.4871]
[1724181442427,0.04567016,143.39,143.37,0.04875971]
[1724181445728,0.06567016,143.39,143.37,0.04875971]
[1724181446234,3.55227016,143.39,143.37,0.04875971]
[1724181447240,3.4867,143.38,143.37,0.04875971]
[1724181448042,0.06567016,143.39,143.37,0.04875971]
[1724181448043,3.55227016,143.39,143.37,0.04875971]
[1724181450040,3.4867,143.38,143.37,0.04875971]
[1724181453456,0.06567016,143.39,143.37,0.04875971]
[1724181454563,3.55217016,143.39,143.37,0.04875971]
[1724181454753,0.06567016,143.39,143.37,3.53565971]
[1724181454956,0.06567016,143.39,143.37,0.04875971]
[1724181456353,0.06567016,143.39,143.37,3.53555971]
[1724181456661,0.06567016,143.39,143.37,0.04875971]
[1724181456852,0.06567016,143.39,143.38,3.4867]
[1724181465569,0.06567016,143.39,143.38,14.2167]
[1724181470361,0.11489185,143.4,143.39,3.4865]
[1724181470563,0.11489185,143.4,143.39,14.2165]
[1724181470767,0.15657676,143.41,143.39,10.73]
[1724181470970,0.22454583,143.42,143.41,3.486]
[1724181481681,0.22454583,143.42,143.41,14.216]
[1724181487380,0.22454583,143.42,143.41,3.486]
[1724181491574,0.22454583,143.42,143.41,14.216]
[1724181497195,0.22454583,143.42,143.41,3.486]
[1724181500281,0.22454583,143.42,143.4,3.53981345]
[1724181500482,0.22454583,143.42,143.4,0.05361345]
[1724181501684,3.71034583,143.42,143.4,0.05361345]
[1724181503480,3.71034583,143.42,143.4,3.53981345]
[1724181504581,0.22454583,143.42,143.4,3.53981345]
[1724181506292,0.22454583,143.42,143.41,3.486]
[1724181507088,0.22454583,143.42,143.4,14.26971345]
[1724181507990,3.71024583,143.42,143.4,0.05361345]
[1724181508383,0.22454583,143.42,143.4,0.05361345]
[1724181508589,3.4863,143.4,143.37,3.4868]
[1724181509682,3.53820679,143.4,143.37,3.53769103]
[1724181510295,3.53820679,143.4,143.38,3.4867]
[1724181513298,3.53820679,143.4,143.37,3.53779103]
[1724181513801,0.05190679,143.4,143.37,0.05089103]
[1724181514302,3.4866,143.39,143.37,0.05089103]
[1724181515409,3.4867,143.38,143.37,0.05089103]
[1724181521511,6.91895852,143.38,143.37,0.05089103]
[1724181521709,14.16225852,143.38,143.33,3.4878]
[1724181522013,10.73,143.36,143.28,238.73]
[1724181522203,10.73,143.36,143.28,10.73]
[1724181522394,14.24816349,143.36,143.3,3.4886]
[1724181522595,14.24816349,143.36,143.28,10.73]
[1724181522799,0.04462842,143.33,143.31,0.04517802]
[1724181523809,3.4882,143.32,143.31,0.04517802]
[1724181526800,3.4885,143.31,143.26,10.73]
[1724181527204,3.4885,143.31,143.28,3.4891]
[1724181527802,0.05274272,143.31,143.28,3.53871154]
[1724181528008,0.05274272,143.31,143.29,3.4888]
[1724181528814,0.05274272,143.31,143.3,3.4887]
[1724181530006,0.05274272,143.31,143.29,3.4888]
[1724181530906,0.05274272,143.31,143.3,3.4887]
[1724181533909,10.73,143.38,143.29,10.73]
[1724181534116,3.4873,143.36,143.31,10.73]
[1724181535310,0.04983751,143.35,143.32,0.04950461]
[1724181535515,0.04983751,143.35,143.33,3.4878]
[1724181539909,0.04983751,143.35,143.34,3.4877]
[1724181540921,0.04983751,143.35,143.33,3.4878]
[1724181541126,3.53733751,143.35,143.33,3.4878]
[1724181541320,14.26733751,143.35,143.32,3.53750461]
[1724181541709,14.26733751,143.35,143.32,0.04950461]
[1724181541915,10.77983751,143.35,143.33,3.4879]
[1724181542113,10.73,143.34,143.32,0.04950461]
[1724181542434,10.73,143.34,143.32,3.53770461]
[1724181545419,14.2177,143.34,143.32,0.04950461]
[1724181547922,10.77983751,143.35,143.32,0.04950461]
[1724181548826,14.26743751,143.35,143.32,3.53760461]
[1724181550828,3.4877,143.34,143.32,0.04950461]
[1724181551218,14.2179,143.34,143.32,0.04950461]
[1724181553025,3.4879,143.33,143.32,0.04950461]
[1724181553236,10.73,143.34,143.29,3.4888]
[1724181554230,3.4881,143.33,143.3,0.05339901]
[1724181554933,14.2179,143.34,143.3,3.54189901]
[1724181555120,10.73,143.34,143.3,3.54189901]
[1724181555927,3.4879,143.33,143.3,3.54189901]
[1724181556123,3.4879,143.33,143.3,0.05339901]
[1724181556436,3.488,143.33,143.3,0.05339901]
[1724181556831,10.73,143.34,143.3,0.05339901]
[1724181557323,3.488,143.33,143.3,3.54199901]
[1724181557721,3.488,143.33,143.3,0.05339901]
[1724181560336,3.488,143.33,143.3,3.54199901]
[1724181563332,10.73,143.34,143.31,3.4884]
[1724181563333,3.4878,143.34,143.31,3.4884]
[1724181563830,3.4879,143.33,143.3,3.54189901]
[1724181565440,10.77983751,143.35,143.3,0.05339901]
[1724181566037,0.04983751,143.35,143.3,0.05339901]
[1724181567942,3.53733751,143.35,143.32,3.488]
[1724181568534,3.4877,143.34,143.31,3.4883]
[1724181568730,0.04983751,143.35,143.32,10.73]
[1724181568935,0.04983751,143.35,143.34,3.4877]
[1724181575646,0.04983751,143.35,143.33,3.53913203]
[1724181584263,0.04983751,143.35,143.34,3.4877]
[1724181585260,0.04983751,143.35,143.33,3.53913203]
[1724181592567,0.04983751,143.35,143.34,3.4877]
[1724181593558,0.04983751,143.35,143.33,3.53913203]
[1724181595165,0.04983751,143.35,143.34,3.4877]
[1724181602872,0.04983751,143.35,143.33,10.78133203]
[1724181602873,2.6493,143.41,143.36,3.4871]
[1724181603173,3.4863,143.4,143.34,10.73]
[1724181603476,0.22454583,143.42,143.39,10.73]
[1724181603974,0.2766503,143.42,143.41,3.486]
[1724181607975,0.2766503,143.42,143.41,14.216]
[1724181609182,0.56090441,143.44,143.43,3.4855]
[1724181609487,0.56090441,143.44,143.43,14.2155]
[1724181609782,0.67813905,143.45,143.44,3.4852]
[1724181610478,0.35135402,143.46,143.45,3.485]
[1724181610684,0.35135402,143.46,143.45,14.215]
[1724181613581,0.35135402,143.46,143.45,3.485]
[1724181615076,0.35135402,143.46,143.45,14.215]
[1724181616082,0.41373051,143.47,143.46,3.4848]
[1724181616483,0.43600284,143.48,143.45,10.73]
[1724181616683,0.43600284,143.48,143.47,14.2145]
[1724181617874,0.43600284,143.48,143.47,3.4845]
[1724181621287,0.43600284,143.48,143.47,14.2145]
[1724181629192,0.43600284,143.48,143.46,3.53310928]
[1724181629387,0.43600284,143.48,143.46,0.04850928]
[1724181629694,11.16600284,143.48,143.43,3.4854]
[1724181629896,11.16600284,143.48,143.41,10.73]
[1724181630091,3.4852,143.45,143.41,10.73]
[1724181630293,11.16600284,143.48,143.43,3.4852]
[1724181630689,3.4848,143.46,143.44,0.04994859]
[1724181631288,3.485,143.45,143.44,0.04994859]
[1724181632296,3.4849,143.46,143.44,0.04994859]
[1724181634195,0.04787567,143.47,143.44,0.04994859]
[1724181634792,3.485,143.45,143.44,0.04994859]
[1724181637898,3.4854,143.44,143.38,10.73]
[1724181638095,10.73,143.45,143.4,3.486]
[1724181638490,3.4856,143.43,143.4,3.486]
[1724181638795,3.4856,143.43,143.41,3.486]
[1724181639286,3.53018228,143.43,143.41,3.486]
[1724181640898,0.04458228,143.43,143.41,3.486]
[1724181641199,0.04458228,143.43,143.42,3.4857]
[1724181649596,3.53008228,143.43,143.41,3.4858]
[1724181649804,0.04458228,143.43,143.41,3.4858]
[1724181650405,0.04458228,143.43,143.42,3.4857]
[1724181652506,3.53018228,143.43,143.41,3.4858]
[1724181653599,3.53018228,143.43,143.41,3.4859]
[1724181654605,0.04458228,143.43,143.41,3.4859]
[1724181657008,0.04458228,143.43,143.4,0.05117652]
[1724181657009,0.04458228,143.43,143.42,3.4857]
[1724181664610,1.70080284,143.48,143.42,10.73]
[1724181664816,0.43600284,143.48,143.42,10.73]
[1724181665601,0.05216523,143.46,143.44,3.52909281]
[1724181670422,0.05216523,143.46,143.45,3.485]
[1724181673522,3.53696523,143.46,143.44,0.04409281]
[1724181674814,3.53696523,143.46,143.44,3.52929281]
[1724181678030,14.215,143.45,143.44,0.04409281]
[1724181679321,10.73,143.45,143.36,4.8406]
[1724181679621,10.73,143.42,143.36,1.3534]
[1724181680017,10.73,143.42,143.35,1.29]
[1724181680334,0.04941744,143.4,143.37,0.04724284]
[1724181680524,3.4865,143.39,143.37,0.04724284]
[1724181681032,3.53571744,143.4,143.37,0.04724284]
[1724181681421,3.53571744,143.4,143.37,3.53414284]
[1724181681915,3.53571744,143.4,143.38,3.4866]
[1724181681916,0.04941744,143.4,143.38,3.4866]
[1724181682121,0.04941744,143.4,143.37,10.77724284]
[1724181682517,0.04941744,143.4,143.39,3.4864]
[1724181684024,3.4851,143.45,143.39,10.73]
[1724181684219,1.2867,143.47,143.42,10.73]
[1724181684530,3.4849,143.46,143.43,3.4854]
[1724181685130,3.53847941,143.46,143.43,3.53291842]
[1724181686727,3.485,143.45,143.43,0.04751842]
[1724181687729,3.4852,143.44,143.43,0.04751842]
[1724181691729,3.4851,143.45,143.43,0.04751842]
[1724181692837,0.05357941,143.46,143.43,3.53281842]
[1724181694836,3.485,143.45,143.43,3.53281842]
[1724181696131,3.53847941,143.46,143.43,3.53281842]
[1724181697645,0.05357941,143.46,143.43,0.04751842]
[1724181698235,0.05357941,143.46,143.45,3.485]
[1724181700737,0.43600284,143.48,143.45,10.73]
[1724181700936,0.43600284,143.48,143.47,14.2145]
[1724181702042,1.09769125,143.5,143.49,3.484]
[1724181702238,1.09769125,143.5,143.49,14.214]
[1724181718149,1.16998237,143.51,143.5,3.4838]
[1724181718346,1.16998237,143.51,143.5,14.2138]
[1724181718943,1.16998237,143.51,143.5,17.70864345]
[1724181721050,1.16998237,143.51,143.5,6.97864345]
[1724181721248,1.16998237,143.51,143.5,14.2138]
[1724181724070,1.16998237,143.51,143.5,3.4838]
[1724181726157,4.65348237,143.51,143.49,3.53690482]
[1724181726357,1.16998237,143.51,143.49,0.05290482]
[1724181727752,1.16998237,143.51,143.49,3.53690482]
[1724181730054,1.16998237,143.51,143.5,3.4838]
[1724181738962,1.16998237,143.51,143.5,6.91153646]
[1724181741865,0.95252767,143.53,143.52,3.4833]
[1724181742070,0.95252767,143.53,143.52,14.2133]
[1724181748076,0.95252767,143.53,143.52,3.4833]
[1724181748277,0.95252767,143.53,143.49,10.78290482]
[1724181748780,4.43572767,143.53,143.51,3.4835]
[1724181749482,3.4834,143.52,143.5,3.4837]
[1724181749782,11.68252767,143.53,143.49,0.05290482]
[1724181749974,10.73,143.51,143.44,1.3037]
[1724181750175,3.4839,143.5,143.47,3.4844]
[1724181750472,10.73,143.51,143.47,3.4844]
[1724181750871,3.53251595,143.5,143.47,3.4844]
[1724181751080,3.53251595,143.5,143.48,0.04607895]
[1724181751272,0.04861595,143.5,143.48,0.04607895]
[1724181753279,3.53241595,143.5,143.48,0.04607895]
[1724181754081,0.04861595,143.5,143.48,0.04607895]
[1724181754677,0.04861595,143.5,143.48,3.53027895]
[1724181756884,3.53251595,143.5,143.48,3.53027895]
[1724181757587,3.484,143.49,143.48,0.04607895]
[1724181757780,0.04861595,143.5,143.48,0.04607895]
[1724181758180,3.53251595,143.5,143.48,0.04607895]
[1724181761288,3.484,143.49,143.48,0.04607895]
[1724181768885,3.4848,143.46,143.44,3.4851]
[1724181769089,3.4848,143.46,143.41,11.9719]
[1724181769491,3.4848,143.46,143.43,3.4853]
[1724181769806,3.4845,143.47,143.42,3.4495888]
[1724181769986,0.05240737,143.46,143.43,10.77430844]
[1724181771211,0.05240737,143.46,143.44,3.4851]
[1724181772914,0.05240737,143.46,143.45,3.485]
[1724181776513,0.05240737,143.46,143.44,3.4852]
[1724181776715,3.53720737,143.46,143.43,0.04430844]
[1724181778212,3.53720737,143.46,143.43,3.52970844]
[1724181779713,3.53740737,143.46,143.43,3.52970844]
[1724181780316,3.53740737,143.46,143.43,0.04430844]
[1724181780317,0.05240737,143.46,143.43,0.04430844]
[1724181780819,3.4852,143.44,143.43,0.04430844]
[1724181785323,0.05240737,143.46,143.43,0.04430844]
[1724181786018,0.05240737,143.46,143.43,10.77430844]
[1724181786217,0.05240737,143.46,143.44,10.73]
[1724181787114,0.05240737,143.46,143.44,14.2151]
[1724181787515,0.05240737,143.46,143.44,10.73]
[1724181788830,0.05240737,143.46,143.45,3.485]
[1724181794736,0.05240737,143.46,143.43,0.04430844]
[1724181794737,3.53720737,143.46,143.43,10.77430844]
[1724181795335,0.05240737,143.46,143.44,3.4851]
[1724181795933,0.05240737,143.46,143.45,3.485]
[1724181796129,0.05240737,143.46,143.43,10.77430844]
[1724181796731,0.05240737,143.46,143.44,3.485]
[1724181796935,3.53730737,143.46,143.44,3.485]
[1724181801331,0.05240737,143.46,143.43,0.04430844]
[1724181801740,0.05240737,143.46,143.43,3.52970844]
[1724181802035,0.05240737,143.46,143.43,0.04430844]
[1724181802441,10.73,143.45,143.43,0.04430844]
[1724181803243,3.4852,143.44,143.43,0.04430844]
[1724181822643,3.486,143.42,143.39,3.4863]
[1724181823753,3.5331543,143.42,143.39,3.53407601]
[1724181827147,3.486,143.41,143.39,0.04777601]
[1724181827757,10.73,143.41,143.39,0.04777601]
[1724181829754,3.4862,143.4,143.39,0.04777601]
[1724181829946,0.0471543,143.42,143.39,0.04777601]
[1724181830450,3.486,143.41,143.39,0.04777601]
[1724181831355,0.0471543,143.42,143.39,0.04777601]
[1724181831943,0.0471543,143.42,143.4,3.4861]
[1724181833661,0.0471543,143.42,143.39,0.04777601]
[1724181834171,0.0471543,143.42,143.41,3.486]
[1724181837462,4.36471341,143.53,143.45,3.485]
[1724181837750,3.4846,143.47,143.41,10.73]
[1724181837953,3.4846,143.47,143.44,3.4851]
[1724181838561,3.53825011,143.47,143.44,3.53089607]
[1724181841765,3.53825011,143.47,143.45,3.485]
[1724181841966,0.05365011,143.47,143.45,3.485]
[1724181843258,3.53815011,143.47,143.45,3.485]
[1724181844767,0.05365011,143.47,143.46,3.4847]
[1724181845763,0.05365011,143.47,143.45,3.4849]
[1724181848579,0.05365011,143.47,143.46,3.4847]
[1724181855984,3.53815011,143.47,143.44,0.04579607]
[1724181856178,0.05365011,143.47,143.44,0.04579607]
[1724181856669,0.05365011,143.47,143.45,3.4849]
[1724181866571,0.05365011,143.47,143.46,3.4848]
[1724181866980,0.05365011,143.47,143.46,14.2148]
[1724181867284,3.4835,143.52,143.49,3.484]
[1724181867884,0.95252767,143.53,143.5,3.4837]
[1724181868178,1.00440855,143.53,143.5,3.52782264]
[1724181868979,4.48760855,143.53,143.5,3.52782264]
[1724181870286,4.48760855,143.53,143.51,3.4835]
[1724181870685,4.48760855,143.53,143.5,0.04412264]
[1724181871676,3.4835,143.52,143.5,0.04412264]
[1724181875181,3.4835,143.51,143.5,0.04412264]
[1724181875582,1.00440855,143.53,143.5,0.04412264]
[1724181876283,3.4834,143.52,143.5,0.04412264]
[1724181876786,4.48760855,143.53,143.5,3.52792264]
[1724181877892,1.00440855,143.53,143.51,3.4835]
[1724181878191,1.00440855,143.53,143.5,0.04412264]
[1724181879882,4.48750855,143.53,143.51,3.4835]
[1724181881184,4.48750855,143.53,143.5,3.52782264]
[1724181883192,4.48750855,143.53,143.51,3.4835]
[1724181886384,1.00440855,143.53,143.51,3.4835]
[1724181886689,1.00440855,143.53,143.5,0.04412264]
[1724181886983,1.00440855,143.53,143.51,3.4834]
[1724181887986,1.00440855,143.53,143.52,14.2133]
[1724181895398,1.00440855,143.53,143.52,3.4833]
[1724181896507,1.00440855,143.53,143.52,14.2133]
[1724181905502,1.16804176,143.54,143.53,3.4831]
[1724181912222,1.16804176,143.54,143.52,3.4831]
[1724181912925,1.16804176,143.54,143.5,0.04412264]
[1724181913430,3.4833,143.53,143.5,3.52782264]
[1724181914626,3.4833,143.53,143.5,0.04412264]
[1724181915332,3.4833,143.52,143.5,0.04412264]
[1724181916931,3.4832,143.53,143.5,0.04412264]
[1724181917236,1.16804176,143.54,143.5,0.04412264]
[1724181917735,3.4834,143.52,143.5,0.04412264]
[1724181919635,3.4832,143.53,143.5,3.52792264]
[1724181919838,1.16804176,143.54,143.5,0.04412264]
[1724181920928,3.4832,143.53,143.5,3.52772264]
[1724181924524,4.65104176,143.54,143.51,3.4835]
[1724181925441,3.4832,143.53,143.5,3.52782264]
[1724181927442,1.16804176,143.54,143.5,0.04412264]
[1724181928441,3.4833,143.52,143.5,0.04412264]
[1724181929741,3.4833,143.52,143.5,3.52792264]
[1724181930132,3.4833,143.52,143.5,0.04412264]
[1724181931236,3.4835,143.51,143.5,0.04412264]
[1724181933343,10.78162373,143.52,143.46,3.4846]
[1724181933539,12.15692373,143.52,143.46,3.4846]
[1724181933744,12.15692373,143.52,143.44,10.73]
[1724181933946,10.73,143.5,143.45,3.4849]
[1724181934340,0.04834814,143.49,143.46,0.05208721]
[1724181935046,3.4845,143.47,143.46,0.05208721]
[1724181951955,3.485,143.45,143.43,3.4854]
[1724181952953,3.53741438,143.45,143.43,3.53614156]
[1724181954846,3.53741438,143.45,143.43,0.05074156]
[1724181955460,3.53741438,143.45,143.43,3.53624156]
[1724181956157,0.05241438,143.45,143.44,3.4852]
[1724181958164,0.05241438,143.45,143.43,3.53614156]
[1724181963270,3.53741438,143.45,143.43,3.53614156]
[1724181964166,0.05241438,143.45,143.43,3.53614156]
[1724181972071,0.05241438,143.45,143.43,0.05074156]
[1724181972578,0.05241438,143.45,143.43,3.53604156]
[1724181979586,0.05241438,143.45,143.44,3.4852]
[1724181982090,29.82954436,143.57,143.43,10.78074156]
[1724181982274,29.82954436,143.57,143.46,10.73]
[1724181982275,10.73,143.52,143.46,10.73]
[1724181983090,3.53457624,143.5,143.48,0.04480887]
[1724181983789,0.05067624,143.5,143.49,3.484]
[1724181986475,0.05067624,143.5,143.49,14.214]
[1724181987082,4.65094176,143.54,143.49,10.73]
[1724181987284,4.65094176,143.54,143.49,12.0085]
[1724181987691,1.16804176,143.54,143.52,3.4833]
[1724181987892,1.16804176,143.54,143.51,10.73]
[1724181988081,1.16804176,143.54,143.52,10.73]
[1724181988082,1.22068803,143.54,143.52,10.73]
[1724181988891,1.22068803,143.54,143.53,3.483]
[1724181990998,1.22068803,143.54,143.53,14.213]
[1724181991199,1.11523234,143.56,143.55,3.4826]
[1724181995091,1.11523234,143.56,143.55,14.2126]
[1724181997389,0.04825214,143.57,143.55,14.2126]
[1724181997699,1.26218607,143.62,143.56,10.73]
[1724181997900,2.70714253,143.64,143.61,10.73]
[1724181998101,2.70714253,143.64,143.63,14.2106]
[1724181998302,2.70714253,143.64,143.63,17.65195823]
[1724181998796,2.70714253,143.64,143.63,3.4806]
[1724181999390,2.70714253,143.64,143.62,14.25653275]
[1724182000198,2.70714253,143.64,143.62,0.04573275]
[1724182007304,2.70714253,143.64,143.62,3.52663275]
[1724182008103,2.70714253,143.64,143.63,3.4806]
[1724182011809,2.70714253,143.64,143.62,3.52653275]
[1724182012909,2.70714253,143.64,143.62,0.04573275]
[1724182013099,13.43714253,143.64,143.57,58.72108845]
[1724182013502,3.481,143.62,143.59,3.4814]
[1724182014011,13.43714253,143.64,143.57,58.72108845]
[1724182014012,3.4807,143.63,143.58,10.73]
[1724182014201,3.4807,143.63,143.59,10.77439263]
[1724182014202,0.05162309,143.62,143.59,10.77439263]
[1724182014508,0.05162309,143.62,143.6,3.4811]
[1724182014700,0.05162309,143.62,143.59,10.77439263]
[1724182015502,0.05162309,143.62,143.61,3.4811]
[1724182017309,0.05162309,143.62,143.61,14.2111]
[1724182020907,0.05162309,143.62,143.59,0.04439263]
[1724182021117,10.73,143.61,143.59,0.04439263]
[1724182021303,10.73,143.6,143.53,10.73]
[1724182021613,3.4817,143.59,143.56,3.4821]
[1724182021818,3.4817,143.59,143.53,14.15743828]
[1724182022015,3.4817,143.59,143.54,38.57]
[1724182022216,0.05034882,143.58,143.55,0.05324112]
[1724182022411,0.05034882,143.58,143.56,10.73]
[1724182023214,3.4823,143.56,143.55,0.05324112]
[1724182023411,0.05034882,143.58,143.55,0.05324112]
[1724182025613,3.53224882,143.58,143.55,0.05324112]
[1724182029116,0.05034882,143.58,143.55,10.78324112]
[1724182029329,0.05034882,143.58,143.55,0.05324112]
[1724182029623,3.53234882,143.58,143.55,0.05324112]
[1724182029815,0.05034882,143.58,143.55,0.05324112]
[1724182030225,0.05034882,143.58,143.55,3.53564112]
[1724182030528,0.05034882,143.58,143.55,0.05324112]
[1724182031023,0.05034882,143.58,143.55,3.53564112]
[1724182031721,0.05034882,143.58,143.56,3.4823]
[1724182032318,0.05034882,143.58,143.57,3.4821]
[1724182036017,0.05034882,143.58,143.56,3.4823]
[1724182039427,10.78034882,143.58,143.55,0.05324112]
[1724182040132,3.4822,143.57,143.55,0.05324112]
[1724182040519,3.4822,143.57,143.55,3.53574112]
[1724182041322,3.4822,143.57,143.55,0.05324112]
[1724182042831,3.4822,143.57,143.55,3.53584112]
[1724182044232,3.53224882,143.58,143.56,3.4823]
[1724182049936,3.53224882,143.58,143.55,3.53574112]
[1724182050530,3.4821,143.57,143.55,3.53574112]
[1724182051436,3.53234882,143.58,143.55,3.53574112]
[1724182053127,3.4822,143.57,143.55,3.53574112]
[1724182054035,3.53234882,143.58,143.56,3.4823]
[1724182054229,3.53234882,143.58,143.55,0.05324112]
[1724182055324,3.53234882,143.58,143.55,3.53564112]
[1724182057731,3.53234882,143.58,143.56,3.4823]
[1724182059627,3.4821,143.57,143.55,3.53574112]
[1724182059835,3.4821,143.57,143.55,0.05324112]
[1724182060239,3.53234882,143.58,143.55,3.53564112]
[1724182067447,3.53234882,143.58,143.56,3.4823]
[1724182067938,3.53234882,143.58,143.55,0.05324112]
[1724182068142,3.4821,143.57,143.55,3.53574112]
[1724182068331,0.05034882,143.58,143.55,3.53574112]